fUSD/lending_fUSD_20240425
["ID","MTS","AMOUNT","RATE_DAILY","PERIOD"]
[323538775,1714078250362,-541.3,0.00011677,2]
[323538776,1714078250372,-167.301119,0.00011677,2]
[323538777,1714078250383,-500.0,0.00011677,2]
[323538778,1714078250567,-500.0,0.00011677,2]
[323538779,1714078250578,-500.0,0.00011677,2]
[323538780,1714078250591,-939.41,0.00011677,2]
[323538781,1714078250600,-645.34,0.00011677,2]
[323538782,1714078250610,-500.0,0.00011677,2]
[323538783,1714078250619,-3210.39,0.00011677,2]
[323538784,1714078250629,-500.0,0.00011677,2]
[323538785,1714078250639,-1773.12,0.00011677,2]
[323538786,1714078250648,-1832.58,0.00011677,2]
[323538787,1714078250658,-1873.73,0.00011677,2]
[323538788,1714078250668,-3068.66,0.00011677,2]
[323538789,1714078250679,-3025.6,0.00011677,2]
[323538790,1714078250688,-500.0,0.00011677,2]
[323538791,1714078250699,-960.8,0.00011677,2]
[323538792,1714078250709,-500.0,0.00011677,2]
[323538793,1714078250720,-1482.63,0.00011677,2]
[323538794,1714078250730,-2183.12,0.00011677,2]
[323538795,1714078250741,-779.08,0.00011677,2]
[323538796,1714078250751,-513.53,0.00011677,2]
[323538797,1714078250761,-1203.03,0.00011677,2]
[323538798,1714078250771,-500.0,0.00011677,2]
[323538799,1714078250783,-500.0,0.00011677,2]
[323538800,1714078250793,-3429.68,0.00011677,2]
[323538801,1714078250803,-1645.77,0.00011677,2]
[323538802,1714078250814,-784611.3111,0.00011679,2]
[323538803,1714078250825,-903.502299,0.00011679,2]
[323538804,1714078250836,-903.502299,0.00011679,2]
[323538805,1714078250846,-199.99843924,0.00011699,2]
[323538806,1714078250857,-614.00748891,0.00011699,2]
[323538807,1714078250868,-600.0,0.000117,4]
[323538808,1714078250878,-500.0,0.0001178,2]
[323538809,1714078250888,-500.0,0.0001178,2]
[323538810,1714078250898,-500.0,0.0001178,2]
[323538811,1714078250908,-500.0,0.0001178,2]
[323538812,1714078250918,-660.05,0.0001178,2]
[323538813,1714078250928,-500.0,0.0001178,2]
[323538814,1714078250938,-500.0,0.0001178,2]
[323538815,1714078250948,-500.0,0.0001178,2]
[323538816,1714078250959,-500.0,0.0001178,2]
[323538817,1714078250969,-500.0,0.0001178,2]
[323538818,1714078250979,-556.44,0.0001178,2]
[323538819,1714078250990,-244.86,0.0001178,2]
[323538820,1714078251000,-500.0,0.0001178,2]
[323538821,1714078251009,-500.0,0.0001178,2]
[323538822,1714078251020,-500.0,0.0001178,2]
[323538823,1714078251030,-500.0,0.0001178,2]
[323538824,1714078251040,-545.98,0.0001178,2]
[323538825,1714078251051,-500.0,0.0001178,2]
[323538826,1714078251061,-500.0,0.0001178,2]
[323538827,1714078251072,-500.0,0.0001178,2]
[323538828,1714078251083,-500.0,0.0001178,2]
[323538829,1714078251094,-500.0,0.0001178,2]
[323538830,1714078251104,-500.0,0.0001178,2]
[323538831,1714078251115,-500.0,0.0001178,2]
[323538832,1714078251125,-650.54,0.0001178,2]
[323538833,1714078251134,-500.0,0.0001178,2]
[323538834,1714078251143,-500.0,0.0001178,2]
[323538835,1714078251153,-500.0,0.0001178,2]
[323538836,1714078251162,-541.27572946,0.0001178,2]
[323538837,1714078251172,-572.8,0.0001178,2]
[323538838,1714078251181,-500.0,0.0001178,2]
[323538839,1714078251191,-504.01,0.0001178,2]
[323538840,1714078251202,-561.18,0.0001178,2]
[323538841,1714078251213,-500.0,0.0001178,2]
[323538842,1714078251223,-2182.98,0.0001178,2]
[323538843,1714078251233,-1208.09,0.0001178,2]
[323538844,1714078251243,-5272.1,0.0001178,2]
[323538845,1714078251252,-500.0,0.0001178,2]
[323538846,1714078251262,-500.0,0.0001178,2]
[323538847,1714078251271,-545.98,0.0001178,2]
[323538848,1714078251281,-2181.54,0.0001178,2]
[323538849,1714078251291,-500.0,0.0001178,2]
[323538850,1714078251301,-1125.51,0.0001178,2]
[323538851,1714078251311,-500.0,0.0001178,2]
[323538852,1714078251322,-557.49,0.0001178,2]
[323538853,1714078251332,-500.0,0.0001178,2]
[323538854,1714078251346,-1883.4,0.0001178,2]
[323538855,1714078251356,-500.0,0.0001178,2]
[323538856,1714078251367,-2925.66,0.0001178,2]
[323538857,1714078251378,-500.0,0.0001178,2]
[323538858,1714078251387,-500.0,0.0001178,2]
[323538859,1714078251396,-500.0,0.0001178,2]
[323538860,1714078251405,-1131.9,0.0001178,2]
[323538861,1714078251415,-628.66,0.0001178,2]
[323538862,1714078251425,-500.0,0.0001178,2]
[323538863,1714078251434,-729.4,0.0001178,2]
[323538864,1714078251445,-704.54,0.0001178,2]
[323538865,1714078251456,-17471.82,0.0001178,2]
[323538866,1714078251466,-2082.01,0.0001178,2]
[323538867,1714078251476,-500.0,0.0001178,2]
[323538868,1714078251487,-532.88,0.0001178,2]
[323538869,1714078251496,-868.1,0.0001178,2]
[323538870,1714078251507,-796.82,0.0001178,2]
[323538871,1714078251517,-500.0,0.0001178,2]
[323538872,1714078251527,-563.21,0.0001178,2]
[323538873,1714078251537,-887.7,0.0001178,2]
[323538874,1714078251548,-500.0,0.0001178,2]
[323538875,1714078251557,-500.0,0.0001178,2]
[323538876,1714078251568,-563.14,0.0001178,2]
[323538877,1714078251577,-551.6,0.0001178,2]
[323538878,1714078251589,-935.02,0.0001178,2]
[323538879,1714078251599,-602.67,0.0001178,2]
[323538880,1714078251609,-883.87,0.0001178,2]
[323538881,1714078251618,-662.46,0.0001178,2]
[323538882,1714078251628,-500.0,0.0001178,2]
[323538883,1714078251638,-797.53,0.0001178,2]
[323538884,1714078251649,-1155.64,0.0001178,2]
[323538885,1714078251659,-500.0,0.0001178,2]
[323538886,1714078251669,-544.29,0.0001178,2]
[323538887,1714078251678,-1937.2,0.0001178,2]
[323538888,1714078251688,-505.57,0.0001178,2]
[323538889,1714078251697,-500.0,0.0001178,2]
[323538890,1714078251706,-4843.1,0.0001178,2]
[323538891,1714078251716,-1097.04,0.0001178,2]
[323538892,1714078251727,-709.38,0.0001178,2]
[323538893,1714078251737,-500.0,0.0001178,2]
[323538894,1714078251747,-500.0,0.0001178,2]
[323538895,1714078251756,-500.0,0.0001178,2]
[323538896,1714078251766,-525.28,0.0001178,2]
[323538897,1714078251776,-690.97,0.0001178,2]
[323538898,1714078251789,-500.0,0.0001178,2]
[323538899,1714078251799,-500.0,0.0001178,2]
[323538900,1714078251808,-2889.82,0.0001178,2]
[323538901,1714078251817,-2685.35,0.0001178,2]
[323538902,1714078251826,-500.0,0.0001178,2]
[323538903,1714078251838,-680.9,0.0001178,2]
[323538904,1714078251848,-542.63,0.0001178,2]
[323538905,1714078251857,-500.0,0.0001178,2]
[323538906,1714078251867,-1033.29,0.0001178,2]
[323538907,1714078251877,-500.0,0.0001178,2]
[323538908,1714078251886,-3350.59,0.0001178,2]
[323538909,1714078251896,-500.0,0.0001178,2]
[323538910,1714078251906,-500.0,0.0001178,2]
[323538911,1714078251916,-1570.73,0.0001178,2]
[323538912,1714078251927,-1173.12,0.0001178,2]
[323538913,1714078251937,-500.0,0.0001178,2]
[323538914,1714078251947,-2865.13,0.0001178,2]
[323538915,1714078251957,-1306.01,0.0001178,2]
[323538916,1714078251968,-500.0,0.0001178,2]
[323538917,1714078251978,-500.0,0.0001178,2]
[323538918,1714078251988,-500.0,0.0001178,2]
[323538919,1714078251998,-7837.11,0.0001178,2]
[323538920,1714078252008,-500.0,0.0001178,2]
[323538921,1714078252018,-500.0,0.0001178,2]
[323538922,1714078252028,-500.0,0.0001178,2]
[323538923,1714078252038,-3696.0,0.0001178,2]
[323538924,1714078252048,-500.0,0.0001178,2]
[323538925,1714078252058,-979.93,0.0001178,2]
[323538926,1714078252069,-683.18,0.0001178,2]
[323538927,1714078252079,-2766.5,0.0001178,2]
[323538928,1714078252091,-642.6,0.0001178,2]
[323538929,1714078252102,-1952.39,0.0001178,2]
[323538930,1714078252112,-3927.35,0.0001178,2]
[323538931,1714078252123,-952.03,0.0001178,2]
[323538932,1714078252133,-575.28,0.0001178,2]
[323538933,1714078252143,-1567.81,0.0001178,2]
[323538934,1714078252153,-500.0,0.0001178,2]
[323538935,1714078252163,-1632.67,0.0001178,2]
[323538936,1714078252173,-6078.92,0.0001178,2]
[323538937,1714078252183,-915.27,0.0001178,2]
[323538938,1714078252193,-500.0,0.0001178,2]
[323538939,1714078252203,-526.47021954,0.0001178,2]
[323538940,1714078252213,-500.0,0.0001178,2]
[323538941,1714078252225,-17837.02,0.0001178,2]
[323538942,1714078252237,-3568.59,0.0001178,2]
[323538943,1714078252248,-500.0,0.0001178,2]
[323538944,1714078252260,-3761.54,0.0001178,2]
[323538945,1714078252268,-500.0,0.0001178,2]
[323538946,1714078252278,-621.69,0.0001178,2]
[323538947,1714078252287,-1406.24,0.0001178,2]
[323538948,1714078252297,-835.79,0.0001178,2]
[323538949,1714078252306,-692.66,0.0001178,2]
[323538950,1714078252315,-500.0,0.0001178,2]
[323538951,1714078252324,-1744.44,0.0001178,2]
[323538952,1714078252335,-1000.0,0.00011799,2]
[323538953,1714078252345,-245000.0,0.00011799,2]
[323538954,1714078252354,-903.502299,0.00011799,2]
[323538955,1714078252364,-903.502299,0.00011799,2]
[323538956,1714078252374,-614.00748889,0.000118,2]
[323538957,1714078252386,-600.0,0.000118,4]
[323538958,1714078252395,-910.54,0.00011824,2]
[323538959,1714078252406,-910.54,0.00011824,2]
[323538960,1714078252415,-910.54,0.00011824,2]
[323538961,1714078252425,-620.0,0.00011826,2]
[323538962,1714078252435,-1000.0,0.00011851,2]
[323538963,1714078252448,-322.22999999,0.00011878,2]
[323538964,1714078252458,-172.68675684,0.0001188,2]
[323538965,1714078252469,-268.21174849,0.000119,2]
[323538966,1714078252480,-864.905498,0.000119,2]
[323538967,1714078252489,-600.0,0.000119,4]
[323538968,1714078252500,-614.00748889,0.000119,2]
[323538969,1714078252511,-12791.07826408,0.000119,2]
[323538970,1714078252520,-1000.0,0.00011903,2]
[323538971,1714078252531,-500.0,0.00011903,2]
[323538972,1714078252542,-1000.0,0.00011904,2]
[323538973,1714078252553,-1000.0,0.00011904,2]
[323538974,1714078252565,-500.0,0.00011904,2]
[323538975,1714078252575,-970.0,0.00011908,2]
[323538976,1714078252587,-2296.0,0.00011908,2]
[323538977,1714078252598,-462.0,0.00011908,2]
[323538978,1714078252609,-1394.0,0.00011908,2]
[323538979,1714078252618,-1256.0,0.00011908,2]
[323538980,1714078252627,-1227.0,0.00011908,2]
[323538981,1714078252637,-755.942,0.00011908,2]
[323538982,1714078252647,-610.0,0.00011908,2]
[323538983,1714078252658,-1859.0,0.00011908,2]
[323538984,1714078252668,-432.467,0.00011908,2]
[323538985,1714078252678,-310.034,0.00011908,2]
[323538986,1714078252688,-443.0,0.00011908,2]
[323538987,1714078252698,-214.0,0.00011908,2]
[323538988,1714078252709,-2704.0,0.00011908,2]
[323538989,1714078252718,-1055.0,0.00011908,2]
[323538990,1714078252728,-187.26970382,0.00011945,2]
[323538991,1714078252737,-268.21174838,0.00011945,2]
[323538992,1714078252746,-7295.13,0.0001195,2]
[323538993,1714078252756,-500.0,0.0001195,2]
[323538994,1714078252767,-1493.62,0.0001195,2]
[323538995,1714078252777,-6922.07,0.0001195,2]
[323538996,1714078252790,-500.0,0.00011951,2]
[323538997,1714078252800,-500.0,0.00011951,2]
[323538998,1714078252809,-500.0,0.00011951,2]
[323538999,1714078252821,-500.0,0.00011951,2]
[323539000,1714078252833,-500.0,0.00011951,2]
[323539001,1714078252845,-500.0,0.00011951,2]
[323539002,1714078252857,-500.0,0.00011951,2]
[323539003,1714078252869,-500.0,0.00011951,2]
[323539004,1714078252880,-516.1,0.00011951,2]
[323539005,1714078252890,-500.0,0.00011951,2]
[323539006,1714078252900,-705.65,0.00011951,2]
[323539007,1714078252910,-500.0,0.00011951,2]
[323539008,1714078252921,-500.0,0.00011951,2]
[323539009,1714078252932,-500.0,0.00011951,2]
[323539010,1714078252943,-500.0,0.00011951,2]
[323539011,1714078252954,-500.0,0.00011951,2]
[323539012,1714078252964,-648.26,0.00011951,2]
[323539013,1714078252974,-500.0,0.00011951,2]
[323539014,1714078252984,-618.95,0.00011951,2]
[323539015,1714078252994,-500.0,0.00011951,2]
[323539016,1714078253004,-602.11,0.00011951,2]
[323539017,1714078253015,-500.0,0.00011951,2]
[323539018,1714078253026,-500.0,0.00011951,2]
[323539019,1714078253038,-500.0,0.00011951,2]
[323539020,1714078253048,-500.0,0.00011951,2]
[323539021,1714078253058,-512.07,0.00011951,2]
[323539022,1714078253070,-500.0,0.00011951,2]
[323539023,1714078253080,-286.48,0.00011951,2]
[323539024,1714078253092,-500.0,0.00011951,2]
[323539025,1714078253104,-500.0,0.00011951,2]
[323539026,1714078253116,-500.0,0.00011951,2]
[323539027,1714078253126,-357.24,0.00011951,2]
[323539028,1714078253137,-793.01,0.00011951,2]
[323539029,1714078253148,-500.0,0.00011951,2]
[323539030,1714078253157,-500.0,0.00011951,2]
[323539031,1714078253167,-500.0,0.00011951,2]
[323539032,1714078253178,-500.0,0.00011951,2]
[323539033,1714078253188,-500.0,0.00011951,2]
[323539034,1714078253199,-500.0,0.00011951,2]
[323539035,1714078253208,-939.41,0.00011951,2]
[323539036,1714078253218,-645.34,0.00011951,2]
[323539037,1714078253227,-500.0,0.00011951,2]
[323539038,1714078253238,-3210.39,0.00011951,2]
[323539039,1714078253249,-500.0,0.00011951,2]
[323539040,1714078253259,-1773.12,0.00011951,2]
[323539041,1714078253269,-1832.58,0.00011951,2]
[323539042,1714078253279,-1873.73,0.00011951,2]
[323539043,1714078253289,-3068.66,0.00011951,2]
[323539044,1714078253299,-3025.6,0.00011951,2]
[323539045,1714078253308,-500.0,0.00011951,2]
[323539046,1714078253319,-960.8,0.00011951,2]
[323539047,1714078253329,-500.0,0.00011951,2]
[323539048,1714078253341,-1482.63,0.00011951,2]
[323539049,1714078253351,-2183.12,0.00011951,2]
[323539050,1714078253361,-779.08,0.00011951,2]
[323539051,1714078253371,-513.53,0.00011951,2]
[323539052,1714078253381,-1203.03,0.00011951,2]
[323539053,1714078253390,-500.0,0.00011951,2]
[323539054,1714078253400,-500.0,0.00011951,2]
[323539055,1714078253409,-3429.68,0.00011951,2]
[323539056,1714078253418,-1645.77,0.00011951,2]
[323539057,1714078253428,-509.84844986,0.00011988,2]
[323539058,1714078253438,-268.21174838,0.00011991,2]
[323539059,1714078253449,-157.042605,0.00011996,3]
[323539060,1714078253460,-157.042605,0.00011996,3]
[323539061,1714078253470,-157.042605,0.00011996,3]
[323539062,1714078253480,-157.042605,0.00011996,3]
[323539063,1714078253491,-157.042605,0.00011996,3]
[323539064,1714078253501,-157.042605,0.00011996,3]
[323539065,1714078253512,-157.042605,0.00011996,3]
[323539066,1714078253521,-157.042605,0.00011996,3]
[323539067,1714078253531,-157.042605,0.00011996,3]
[323539068,1714078253541,-157.042605,0.00011996,3]
[323539069,1714078253550,-157.042605,0.00011996,3]
[323539070,1714078253560,-157.042605,0.00011996,3]
[323539071,1714078253570,-157.042605,0.00011996,3]
[323539072,1714078253580,-157.042605,0.00011996,3]
[323539073,1714078253590,-157.042605,0.00011996,3]
[323539074,1714078253601,-157.042605,0.00011996,3]
[323539075,1714078253612,-157.042605,0.00011996,3]
[323539076,1714078253622,-157.042605,0.00011996,3]
[323539077,1714078253632,-157.042605,0.00011997,3]
[323539078,1714078253642,-157.042605,0.00011997,3]
[323539079,1714078253651,-157.042605,0.00011997,3]
[323539080,1714078253662,-157.042605,0.00011997,3]
[323539081,1714078253671,-157.042605,0.00011997,3]
[323539082,1714078253682,-157.042605,0.00011997,3]
[323539083,1714078253692,-157.042605,0.00011997,3]
[323539084,1714078253702,-157.042605,0.00011997,3]
[323539085,1714078253713,-157.042605,0.00011997,3]
[323539086,1714078253724,-157.042605,0.00011997,3]
[323539087,1714078253734,-157.042605,0.00011997,3]
[323539088,1714078253744,-157.042605,0.00011997,3]
[323539089,1714078253753,-157.042605,0.00011997,3]
[323539090,1714078253762,-157.042605,0.00011997,3]
[323539091,1714078253772,-157.042605,0.00011997,3]
[323539092,1714078253782,-7893.15872819,0.00011998,2]
[323539093,1714078253793,-781.35828446,0.00011998,2]
[323539094,1714078253803,-31706.78754861,0.00011998,2]
[323539095,1714078253812,-277.09289079,0.00011998,2]
[323539096,1714078253823,-1513.01279747,0.00011998,2]
[323539097,1714078253832,-359.52096542,0.00011998,2]
[323539098,1714078253845,-304.90902579,0.00011998,2]
[323539099,1714078253855,-310.0,0.00011998,2]
[323539100,1714078253867,-444.05092147,0.00011998,2]
[323539101,1714078253877,-711.0273802,0.00011998,2]
[323539102,1714078253888,-306.95158875,0.00011998,2]
[323539103,1714078253898,-161.31340791,0.00011998,2]
[323539104,1714078253907,-157.78253506,0.00011998,2]
[323539105,1714078253916,-4513.56562886,0.00011998,2]
[323539106,1714078253926,-156.94283025,0.00011998,2]
[323539107,1714078253935,-161.64269608,0.00011998,2]
[323539108,1714078253943,-14918.40590273,0.00011998,2]
[323539109,1714078253953,-175.21246701,0.00011998,2]
[323539110,1714078253964,-490.56341243,0.00011998,2]
[323539111,1714078253973,-515.51901782,0.00011998,2]
[323539112,1714078253982,-300.95792734,0.00011998,2]
[323539113,1714078253991,-233.03801742,0.00011998,2]
[323539114,1714078254000,-155.80892173,0.00011998,2]
[323539115,1714078254009,-199.08221824,0.00011998,2]
[323539116,1714078254018,-155.0,0.00011998,2]
[323539117,1714078254027,-1722.95125171,0.00011998,2]
[323539118,1714078254035,-305.41747593,0.00011998,2]
[323539119,1714078254044,-212.44152155,0.00011998,2]
[323539120,1714078254053,-160.61983988,0.00011998,2]
[323539121,1714078254062,-190.49708223,0.00011998,2]
[323539122,1714078254071,-346.41830008,0.00011998,2]
[323539123,1714078254081,-157.13236333,0.00011998,2]
[323539124,1714078254092,-172.36747867,0.00011998,2]
[323539125,1714078254101,-412.04785024,0.00011998,2]
[323539126,1714078254110,-185.69743876,0.00011998,2]
[323539127,1714078254119,-259.32312542,0.00011998,2]
[323539128,1714078254129,-3018.84273905,0.00011998,2]
[323539129,1714078254139,-155.25921222,0.00011998,2]
[323539130,1714078254148,-215.79675141,0.00011998,2]
[323539131,1714078254156,-196.89901937,0.00011998,2]
[323539132,1714078254309,-233.63015905,0.00011998,2]
[323539133,1714078254335,-941.19979602,0.00011998,2]
[323539134,1714078254347,-171.29149995,0.00011998,2]
[323539135,1714078254357,-309.95428075,0.00011998,2]
[323539136,1714078254366,-208.58192749,0.00011998,2]
[323539137,1714078254376,-178.03155293,0.00011998,2]
[323539138,1714078254385,-306.80165176,0.00011998,2]
[323539139,1714078254395,-289.83775221,0.00011998,2]
[323539140,1714078254404,-201.15225186,0.00011998,2]
[323539141,1714078254413,-305.60617377,0.00011998,2]
[323539142,1714078254424,-157.7680103,0.00011998,2]
[323539143,1714078254433,-1585.03652121,0.00011998,2]
[323539144,1714078254442,-216.84655625,0.00011998,2]
[323539145,1714078254451,-588.53738317,0.00011998,2]
[323539146,1714078254460,-213.60114996,0.00011998,2]
[323539147,1714078254468,-197.94853797,0.00011998,2]
[323539148,1714078254477,-266.1273035,0.00011998,2]
[323539149,1714078254486,-158.49372764,0.00011998,2]
[323539150,1714078254495,-4728.17005222,0.00011998,2]
[323539151,1714078254504,-207.21030234,0.00011998,2]
[323539152,1714078254514,-219.89815157,0.00011998,2]
[323539153,1714078254523,-155.61740143,0.00011998,2]
[323539154,1714078254532,-155.0,0.00011998,2]
[323539155,1714078254543,-156.22891115,0.00011998,2]
[323539156,1714078254553,-163.88340812,0.00011998,2]
[323539157,1714078254562,-175.54408362,0.00011998,2]
[323539158,1714078254572,-194.01529019,0.00011998,2]
[323539159,1714078254582,-211.84497049,0.00011998,2]
[323539160,1714078254594,-155.0,0.00011998,2]
[323539161,1714078254603,-157.37702182,0.00011998,2]
[323539162,1714078254612,-205.7728251,0.00011998,2]
[323539163,1714078254621,-155.0,0.00011998,2]
[323539164,1714078254632,-194.90310928,0.00011998,2]
[323539165,1714078254641,-274.49739313,0.00011998,2]
[323539166,1714078254651,-155.0,0.00011998,2]
[323539167,1714078254660,-185.74261921,0.00011998,2]
[323539168,1714078254670,-164.47454881,0.00011998,2]
[323539169,1714078254679,-245.90491526,0.00011998,2]
[323539170,1714078254688,-200.69432286,0.00011998,2]
[323539171,1714078254697,-478.70142967,0.00011998,2]
[323539172,1714078254706,-204.16567905,0.00011998,2]
[323539173,1714078254714,-211.35577984,0.00011998,2]
[323539174,1714078254723,-3668.36402582,0.00011998,2]
[323539175,1714078254732,-308.53098915,0.00011998,2]
[323539176,1714078254741,-214.00741216,0.00011998,2]
[323539177,1714078254750,-277.78803159,0.00011998,2]
[323539178,1714078254760,-262.16181551,0.00011998,2]
[323539179,1714078254769,-157.042605,0.00011998,3]
[323539180,1714078254779,-157.042605,0.00011998,3]
[323539181,1714078254791,-157.042605,0.00011998,3]
[323539182,1714078254800,-157.042605,0.00011998,3]
[323539183,1714078254809,-157.042605,0.00011998,3]
[323539184,1714078254818,-157.042605,0.00011998,3]
[323539185,1714078254827,-157.042605,0.00011998,3]
[323539186,1714078254837,-157.042605,0.00011998,3]
[323539187,1714078254847,-157.042605,0.00011998,3]
[323539188,1714078254858,-157.042605,0.00011998,3]
[323539189,1714078254867,-157.042605,0.00011998,3]
[323539190,1714078254876,-157.042605,0.00011998,3]
[323539191,1714078254885,-157.042605,0.00011998,3]
[323539192,1714078254895,-157.042605,0.00011998,3]
[323539193,1714078254903,-157.042605,0.00011998,3]
[323539194,1714078254912,-150.042605,0.00011998,3]
[323539195,1714078254921,-903.502299,0.00011998,2]
[323539196,1714078254930,-903.502299,0.00011998,2]
[323539197,1714078254939,-202.62535728,0.00011999,3]
[323539198,1714078254950,-1034.6412428,0.00011999,3]
[323539199,1714078254960,-1034.6412428,0.00011999,3]
[323539200,1714078254969,-1034.6412428,0.00011999,3]
[323539201,1714078254978,-1034.6412428,0.00011999,3]
[323539202,1714078254987,-1034.64124282,0.00011999,3]
[323539203,1714078254996,-150.01,0.00011999,2]
[323539204,1714078255005,-5444.53698867,0.00011999,2]
[323539205,1714078255015,-721711.5713558,0.00012,2]
[323539206,1714078255423,-809.28957006,0.00012,2]
[323539207,1714078255730,-358.59593088,0.00012,2]
[323539208,1714078255755,-1067.5,0.00012,2]
[323539209,1714078255850,-58036.60014106,0.00012,2]
[323539210,1714078255862,-35786.95976804,0.00012,2]
[323539211,1714078255881,-6187.4,0.00012,2]
[323539212,1714078255892,-1564.16880595,0.00012,2]
[323539213,1714078255903,-367.5970276,0.00012,2]
[323539214,1714078256270,-321.25185812,0.00012,2]
[323539215,1714078257014,-1479.5325,0.00010392,2]
[323539216,1714078257026,-2375.3175,0.00010392,2]
[323539217,1714078257035,-500.0,0.00010958,2]
[323539218,1714078257044,-500.0,0.00010958,2]
[323539219,1714078257053,-500.0,0.00010958,2]
[323539220,1714078257062,-560.6,0.00011232,2]
[323539221,1714078257072,-497900.1825,0.00012,2]
[323539222,1714078257086,-1090.353,0.00012,2]
[323539223,1714078258065,545.91901904,8.432e-05,2]
[323539224,1714078292436,1074.06,9.08e-05,2]
[323539225,1714078306419,150.0,8.432e-05,2]
[323539226,1714078306441,150.0,8.432e-05,2]
[323539227,1714078306462,287.53590205,8.432e-05,2]
[323539228,1714078344046,48925.94,9.08e-05,2]
[323539229,1714078385439,528.0,8.432e-05,2]
[323539230,1714078385588,300.0,8.432e-05,2]
[323539231,1714078385894,300.0,8.432e-05,2]
[323539232,1714078399194,820.0,8.432e-05,2]
[323539233,1714078402715,307.0,8.432e-05,2]
[323539239,1714078701783,-1061.01702893,9.07e-05,2]
[323539240,1714078701806,-1294.31423164,9.07e-05,2]
[323539241,1714078701828,-1995.26350139,9.071e-05,2]
[323539242,1714078701850,-414.41284543,9.072e-05,2]
[323539243,1714078701872,-150.0,9.078e-05,2]
[323539244,1714078701894,-332.59379287,9.078e-05,2]
[323539245,1714078701922,-316.65546178,9.078e-05,2]
[323539246,1714078701952,-13693.67794396,9.079e-05,2]
[323539247,1714078701975,-1190.168451,9.079e-05,2]
[323539248,1714078702001,-31551.896743,9.08e-05,2]
[323539249,1714078709984,-363.32156126,9.069e-05,2]
[323539250,1714078710009,-9636.67843874,9.08e-05,2]
[323539251,1714078733316,-696.83997587,9.079e-05,2]
[323539252,1714078733342,-9303.16002413,9.08e-05,2]
[323539253,1714078751209,-392.21201561,9.078e-05,2]
[323539254,1714078751233,-607.78798439,9.078e-05,2]
[323539255,1714078756249,-1000.0,9.078e-05,2]
[323539256,1714078758932,-1000.0,9.078e-05,2]
[323539257,1714078760549,-310.03281574,9.078e-05,2]
[323539258,1714078760573,-155.0,9.079e-05,2]
[323539259,1714078760596,-155.5395067,9.079e-05,2]
[323539260,1714078760620,-379.42767756,9.08e-05,2]
[323539261,1714078815909,1063.84,8.285e-05,2]
[323539269,1714079296634,1010.64,8.219e-05,2]
[323539287,1714079431455,-858.85640371,9.063e-05,2]
[323539288,1714079431468,-202.16062522,9.063e-05,2]
[323539289,1714079431477,-1922.37196648,9.064e-05,2]
[323539290,1714079431488,-72.89153491,9.064e-05,2]
[323539291,1714079431498,-2500.1710668,9.08e-05,2]
[323539292,1714079431509,-678.3617778,9.08e-05,2]
[323539293,1714079431526,-377.91572107,9.08e-05,2]
[323539294,1714079431537,-858.16390953,9.08e-05,2]
[323539295,1714079431673,-844.00971584,9.08e-05,2]
[323539296,1714079431684,-9346.54938718,9.08e-05,2]
[323539297,1714079431909,-19719.15591658,9.08e-05,2]
[323539305,1714079437622,-285.70748418,9.08e-05,2]
[323539306,1714079437661,-284876.17034761,9.08e-05,2]
[323539307,1714079437670,-2569.22,9.805e-05,2]
[323539308,1714079437679,-250.0,9.832e-05,2]
[323539309,1714079437689,-221.01,9.879e-05,2]
[323539310,1714079437698,-23900.0,9.907e-05,2]